Cogmind - Beta 11.1 @@@ ROGUE MODE // 2022.05.07 @ 21:36:04 Player: Sara Result: Destroyed by G-34 Mercenary with Small Laser Performance ------------- Evolutions (1) 500 Regions Visited (2) 400 Robots Destroyed (14) 70 Value Destroyed (315) 315 Prototype IDs (0) 0 Alien Tech Used (0) 0 Bonus (0) 0 TOTAL SCORE: 1285 Bonus ------- None Cogmind --------- Core Integrity 0/400 Matter 295/300 Energy 13/100 System Corruption 0% Temperature Cool (33) Movement Core (700) Ox13 Location -9/Materials Parts ------- > --- POWER (1) -------- (None) > --- PROPULSION (2) --- (None) > --- UTILITY (4) ------ Cooling System High-capacity Storage Unit > --- WEAPON (2) ------- (None) > --- INVENTORY (20) --- Light Treads Wheel Wheel High-capacity Storage Unit High-capacity Storage Unit Light Assault Rifle Maul Maul Peak State ------------ > --- POWER ------------ Ion Engine > --- PROPULSION ------- Aluminum Leg Aluminum Leg > --- UTILITY ---------- Cooling System Cooling System High-capacity Storage Unit > --- WEAPON ----------- Heavy Assault Rifle Heavy Assault Rifle > --- INVENTORY -------- Light Ion Engine Light Treads Wheel Wheel High-capacity Storage Unit High-capacity Storage Unit Light Assault Rifle Maul Maul [Rating: 13] Favorites ----------- Power Ion Engine Engine Ion Engine Propulsion Aluminum Leg Leg Aluminum Leg Utility Cooling System Device Cooling System Storage Small Storage Unit Weapon Assault Rifle Energy Cannon Beam Cannon Ballistic Gun Assault Rifle Impact Weapon Maul Build | -11 -10 -9 ------- Run | Scr Mat Mat Slots Evolved 2 | . . 2 Power . | . . . Propulsion . | . . . Utility 2 | . . 2 Weapon . | . . . Parts Attached 13 | . 1 12 Power 2 | . . 2 Engine 2 | . . 2 Core . | . . . Reactor . | . . . Propulsion . | . . . Treads . | . . . Leg . | . . . Wheel . | . . . Hover . | . . . Flight . | . . . Utility 4 | . . 4 Device 2 | . . 2 Storage 2 | . . 2 Processor . | . . . Hackware . | . . . Protection . | . . . Artifact . | . . . Weapon 7 | . 1 6 Energy Gun . | . . . Energy Cannon 2 | . . 2 Ballistic Gun 3 | . 1 2 Ballistic Cannon . | . . . Launcher . | . . . Special Weapon . | . . . Impact Weapon 2 | . . 2 Slashing Weapon . | . . . Piercing Weapon . | . . . Special Melee Weapon . | . . . Unidentified Prototypes . | . . . Parts Lost 11 | . 3 8 Power 3 | . 1 2 Propulsion 2 | . . 2 Utility 1 | . . 1 Weapon 5 | . 2 3 Highest Loss Streak 5 | . 3 5 To Critical Strikes . | . . . Average Slot Usage (%) 69 | . 79 59 Engine 7 | . 12 1 Leg 22 | . 28 16 Device 7 | . . 14 Storage 10 | . 13 8 Energy Cannon 1 | . . 2 Ballistic Gun 16 | . 25 8 Impact Weapon 3 | . . 7 Naked Turns . | . . . Heaviest Build 52 | 13 14 52 Greatest Support 20 | 20 20 20 Greatest Overweight (x) 16 | . . 16 Average Overweight (x) . | . . . Largest Inventory Capacity 20 | 8 8 20 Average Capacity 12 | 8 7 16 Most Carried 9 | 6 6 9 Average Carried 6 | 6 5 7 Final Capacity 20 | 8 5 20 Final Carried 8 | 6 5 8 Class Distribution -------------------- 100% | Mutant Dominant Class ---------------- Mutant | -10/Materials Mutant | -9/Materials Resources | -11 -10 -9 ----------- Run | Scr Mat Mat Matter Collected 404 | 200 82 122 Remotely . | . . . Salvage Created 488 | . 200 288 Parts 29 | . 15 14 Haulers Intercepted . | . . . Recyclers Shooed 1 | . 1 . Parts Field Recycled . | . . . Retrieved Matter . | . . . Parts Self-Destructed . | . . . Prevented . | . . . Kills | -11 -10 -9 ------- Run | Scr Mat Mat Combat Hostiles Destroyed 13 | . 5 8 Melee 1 | . . 1 Guns 6 | . 5 1 Cannons 4 | . . 4 Classes Destroyed 5 | . 3 2 Recycler 1 | . 1 . Swarmer 7 | . 4 3 Grunt 3 | . 1 2 Duelist 1 | . . 1 Sentry 2 | . . 2 Best Kill Streak 4 | . 2 4 Combat Bots Only 4 | . 2 4 Max Kills in Single Turn 2 | . 2 1 Gunslinging 1 | . 1 . Exploded . | . . . Melee 1 | . . 1 Uniques/NPCs Destroyed . | . . . Combat | -11 -10 -9 -------- Run | Scr Mat Mat Damage Taken 1609 | . 455 1154 Core 472 | . 64 408 Absorbed by Shields . | . . . Core Remaining (%) 87 | 100 74 . Volleys Fired 43 | . 19 24 Largest 2 | . 2 2 Hottest 120 | . 40 120 Shots Fired 64 | . 29 35 Gun 43 | . 29 14 Cannon 21 | . . 21 Launcher . | . . . Special . | . . . Kinetic 43 | . 29 14 Thermal 21 | . . 21 Explosive . | . . . Electromagnetic . | . . . Robot Hit Streak 10 | . 8 10 Robot Miss Streak 4 | . 4 3 Penetration Max . | . . . Secondary Targets 3 | . 3 . Max Gunslinging Chain 1 | . 1 . Shots Hit Robots 45 | . 19 26 Core Hits 17 | . 9 8 Critical Kills . | . . . Critical Parts Destroyed 3 | . . 3 Critical Strikes 3 | . . 3 Smash 3 | . . 3 Melee Attacks 6 | . . 6 Impact 6 | . . 6 Slashing . | . . . Piercing . | . . . Sneak Attacks . | . . . Combat Hostiles . | . . . Follow-up Attacks . | . . . Damage Inflicted 816 | . 249 567 Guns 404 | . 249 155 Cannons 228 | . . 228 Explosions . | . . . Melee 184 | . . 184 Ramming . | . . . Kinetic 404 | . 249 155 Thermal 228 | . . 228 Explosive . | . . . Electromagnetic . | . . . Impact 184 | . . 184 Slashing . | . . . Piercing . | . . . Highest Corruption . | . . . Average Corruption . | . . . Corruption Purged . | . . . Corruption Blocked . | . . . Overload Shots . | . . . Overflow Damage 164 | . . 164 Projectiles . | . . . Explosions . | . . . Melee 164 | . . 164 Knockbacks 2 | . . 2 Impact 2 | . . 2 Kinetic . | . . . Secondary . | . . . Self-Inflicted Damage . | . . . Shots . | . . . Rammed . | . . . Targets Rammed . | . . . Kicked . | . . . Crushed . | . . . Highest Temperature 17 | . 17 11 Average Temperature 6 | . 13 4 Received Heat Transfer 261 | . 42 219 Siege Activations . | . . . Robots Corrupted . | . . . Combat Hostiles . | . . . Parts Fried 3 | . . 3 Impact Corruptions 7 | . . 7 Robots Melted . | . . . Combat Hostiles . | . . . Parts Melted . | . . . Heat Transferred 481 | . . 481 Parts Sabotaged . | . . . Parts Stolen . | . . . Parts Stripped . | . . . Power Chain Reactions . | . . . Missiles Intercepted . | . . . Alert | -11 -10 -9 ------- Run | Scr Mat Mat Peak Influence 181 | . 156 181 Initial 61 | . . 61 Average 79 | . 65 93 Maximum Alert Level . | . . . Low Security (%) 100 | 100 100 100 Level 1 . | . . . Level 2 . | . . . Level 3 . | . . . Level 4 . | . . . Level 5 . | . . . High Security . | . . . Max Security . | . . . Squads Dispatched 3 | . 1 2 Investigation 2 | . 1 1 Extermination . | . . . Reinforcement 1 | . . 1 Assault . | . . . Garrison . | . . . Intercept . | . . . Searches Triggered . | . . . Construction Impeded . | . . . Haulers Reinforced . | . . . Active Scanning Responses . | . . . Cargo Convoy Interrupts . | . . . Stealth | -11 -10 -9 --------- Run | Scr Mat Mat Distress Signals 5 | . 1 4 Communications Jammed . | . . . Distress Signals . | . . . Times Spotted 31 | . 13 18 Peak Tracking Total 7 | . 6 7 Tactical Retreats 1 | . 1 . Traps | -11 -10 -9 ------- Run | Scr Mat Mat Traps Triggered 3 | . 2 1 Indirectly . | . . . Trap Hack Attempts . | . . . Triggered . | . . . Disarmed . | . . . Reprogrammed . | . . . Reused . | . . . Traps Extracted . | . . . Installed . | . . . Triggered . | . . . Machines | -11 -10 -9 ---------- Run | Scr Mat Mat Machines Disabled . | . . . Max in Single Turn . | . . . Machines Sabotaged . | . . . Garrisons Compromised . | . . . Overloaded Fab Kills . | . . . Hacking | -11 -10 -9 --------- Run | Scr Mat Mat Machines Accessed 4 | . 2 2 Terminals 3 | . 2 1 Fabricators . | . . . Repair Stations . | . . . Recycling Units 1 | . . 1 Scanalyzers . | . . . Garrison Access . | . . . Total Hacks 9 | . 5 4 Successful 7 | . 3 4 Failed 2 | . 2 . Catastrophic . | . . . Database Lockouts . | . . . Manual 5 | . 3 2 Terminals 6 | . 5 1 Fabricators . | . . . Repair Stations . | . . . Recycling Units 3 | . . 3 Scanalyzers . | . . . Garrison Access . | . . . Terminal Hacks 2 | . 1 1 Record 1 | . . 1 Robot Analysis 1 | . 1 . Fabricator Hacks . | . . . Repair Station Hacks . | . . . Recycling Unit Hacks 1 | . . 1 Retrieve Components 1 | . . 1 Scanalyzer . | . . . Garrison Access Hacks . | . . . Unauthorized Hacks 4 | . 2 2 Terminals 2 | . 2 . Botnet 1 | . 1 . Operators 1 | . 1 . Fabricators . | . . . Repair Stations . | . . . Recycling Units 2 | . . 2 Reject 1 | . . 1 Recyclers 1 | . . 1 Scanalyzers . | . . . Garrison Access . | . . . Data Cores Recovered . | . . . Used . | . . . Hacking Detections 3 | . 2 1 Full Trace Events 1 | . 1 . Feedback Events . | . . . Feedback Blocked . | . . . Robot Schematics Acquired . | . . . Robots Built . | . . . Authchips . | . . . Time . | . . . Total Robot Build Rating . | . . . Part Schematics Acquired . | . . . Parts Built . | . . . Authchips . | . . . Time . | . . . Total Part Build Rating . | . . . Parts Repaired . | . . . Time . | . . . Parts Recycled . | . . . Recycled Matter . | . . . Retrieved Matter . | . . . Retrieved Components 3 | . . 3 Parts Scanalyzed . | . . . Part Schematics Acquired . | . . . Parts Damaged . | . . . Bothacking | -11 -10 -9 ------------ Run | Scr Mat Mat Used RIF Installer . | . . . Robots Hacked . | . . . Non-combat . | . . . Combat . | . . . Robot Hacks Applied . | . . . Relay Couplers Released . | . . . Fabnet Peak Effective % . | . . . Robots Rewired . | . . . Allies Hacked . | . . . Hacks Repelled . | . . . Allies | -11 -10 -9 -------- Run | Scr Mat Mat Total Allies . | . . . Largest Group . | . . . Highest-Rated Group . | . . . Highest-Rated Ally . | . . . Total Orders . | . . . Ally Attacks . | . . . Total Damage . | . . . Kills . | . . . Allies Corrupted . | . . . Allies Melted . | . . . Intel | -11 -10 -9 ------- Run | Scr Mat Mat Robot Analysis Total 1 | . 1 . Derelict Logs Recovered . | . . . Drone Launches . | . . . Drone Recoveries . | . . . Exploration | -11 -10 -9 ------------- Run | Scr Mat Mat Turns Passed 671 | 6 328 337 Spaces Moved 378 | 6 213 159 Core 116 | . 21 95 Treads . | . . . Legs 262 | 6 192 64 Wheels . | . . . Hover . | . . . Flight . | . . . Fastest Speed 50 | 120 50 50 Average Speed 124 | 120 113 139 Slowest Speed 850 | 120 120 850 Overloaded Moves . | . . . Propulsion Burnouts . | . . . Robots Hopped . | . . . Cave-ins Triggered . | . . . Exploration Rate (%) 22 | 2 50 14 Regions Visited 2 Branch Regions . Pre-discovered Areas . | . . . Known Exits Taken . | . . . Unknown Exits Taken 2 | 1 1 . Scrap Searched . | . . . Spaces Dug . | . . . Terrain Destroyed . | . . . Melee . | . . . Projectile . | . . . AOE . | . . . Terrain Rammed . | . . . Walls Destroyed . | . . . Machines Disabled . | . . . Actions | -11 -10 -9 --------- Run | Scr Mat Mat Total 500 | 5 270 225 Wait 53 | . 37 16 Move 376 | 5 212 159 Hop . | . . . Pick Up 7 | . . 7 Fast Attach 6 | . . 6 Attach 4 | . . 4 Detach . | . . . Swap 3 | . 1 2 Drop 2 | . 1 1 Fire 43 | . 19 24 Melee 6 | . . 6 Ram . | . . . Kick . | . . . Crush . | . . . Escape Stasis . | . . . Rewire . | . . . Trap . | . . . Miscellaneous . | . . . Route ------- -11/Scrapyard -10/Materials -9/Materials History --------- Turn | Location | Event 1 | -11/Scrapyard | Discovered new exit (range 3) 7 | -11/Scrapyard | Entered Materials 251 | -10/Materials | Discovered new exit (range 14) 313 | -10/Materials | Build established: Mutant 335 | -10/Materials | Entered another Materials area 335 | -9/Materials | Evolved 2 slots: Utility x2 352 | -9/Materials | Lost 3 parts (1p2w) 570 | -9/Materials | Lost 3 parts (1p1n1w) 654 | -9/Materials | Core integrity fell below 50% 669 | -9/Materials | Core integrity fell below 20% 672 | -9/Materials | Destroyed by G-34 Mercenary with Small Laser Last Messages --------------- 00634_ Cooling System destroyed. 00634_ K-01 Serf collects debris. 00637_ Triggered Alarm Trap. 00637_ An alarm sounds. 00637_ ALERT: Alarm triggered, dispatching investigation squad. 00639_ U-05 Engineer lays Concrete. 00642_ K-01 Serf collects debris. 00648_ R-06 Scavenger collects Sml. Laser. 00648_ Y-45 Defender destroyed. 00652_ R-06 Scavenger collects Heat Sink. 00657_ Lgt. Ion Engine destroyed. 00657_ Y-45 Defender destroyed. 00662_ U-05 Engineer lays Concrete. 00663_ Beam Cannon destroyed. 00663_ U-05 Engineer lays Concrete. 00665_ S-10 Pest destroyed. 00668_ U-05 Engineer lays Concrete. 00670_ K-01 Serf collects debris. 00672_ Beam Cannon destroyed. 00672_ Critical hit (Burn: +37). Map ----- +----------------------------------------------------+ | ?????????????????????????????????????????????????? | | ???????##########???????????????#????????????????? | | ???????# #?????????????? #????????????????? | | ???????# || #????????????? #????????????????? | | ???????# || ########???###+#?????????????????? | | ???????# | # !! ##### % #?????????????????? | | ???????# # + #?????????????????? | | ???????# # ##### #?????????????????? | | ???????# # #???# #?????????????????? | | ???????# # #???# #?????????????????? | | ???????# # #???# #?????????????????? | | ??????#######+######+####### #?????????????????? | | ??????# ^ % #?????????????????? | | ??????# ^ % +?????????????????? | | ??????# = #?????????????????? | | ??????# ###+######+####%[ ####?????????????????? | | ??????# # #???? ?#=! #????????????????????? | | ??????# # """ #????? # #????????????????????? | | ??????# #r"Y"!#???????# Y #????????????????????? | | ??????# # ! #???????# ############# ???????? | | ??????# # #???????#g ???????? | | ??????# # """ #???????# ???????? | | ??????# # """ #???????#[| """ ""?????????? | | ??????# # """ #???????#[ """ ????????????? | | ??????# # #???????#| k u""" ????????????? | | ??????# #######???????#@ a ????????? | | ??????# #?????????????# u ???????? | | ??????# #?????????????# """ """ """ ???????? | | ??????# #?????????????# %*""" """ ""?????????? | | ####### #?????????????#*=%""" """?????????????? | | # #?????????????#%[ ?????????????? | | """ # #?????????????# s ????????????? | | """ # #?????????????+ s ????????????? | | """ # #?????????????# ? ????????????? | | + #?????????????####+### ???? ???????????? | | """ # #????????????????? ??# ???????????????? | | """ # #?????????????????""???????????????????? | | """ # #?????????????????"" ??????????????????? | | # ######?????????????????????????????????? | | ####### # T #?????????????????????????????????? | | ??????# # #?????????????????????????????????? | | ??????# # #?????????????????????????????????? | | ??????# # #?????????????????????????????????? | | ??????# + #?????????????????????????????????? | | ??????# # #?????????????????????????????????? | | ??????# # #?????????????????????????????????? | | ??????# # #?????????????????????????????????? | | ??????##### =#?????????????????????????????????? | | ??????????######?????????????????????????????????? | | ?????????????????????????????????????????????????? | +----------------------------------------------------+ Best States ------------- Heat Dissipation 72 Energy Generation 10 Energy Capacity 250 Matter Stores 300 Matter Capacity 300 Sight Range 16 Terrain Scan Density 10 Evasion (%) 55 Item Schematics ----------------- None Robot Schematics ------------------ None Fabricated ------------ Nothing Alien Tech Used ----------------- None Achievements -------------- None Challenges ------------ None Game ------ Seed AutogunHeatInitializer Manual? 0 Play Time 00:10:09 Cumulative 90.8 hours Start 2022.05.07 @ 21:19:31 End 2022.05.07 @ 21:36:04 Sessions 1 Manual Loads 0 Difficulty Rogue Special Mode None Game No. 111 Rogue 111 Adventurer 0 Explorer 0 Win Type - Total 0 Types 0/0/0/0/0/0/0/0/0 Lore% 49 Gallery% 50 Achievement% 44 Wizard Run 0 Options --------- ASCII 0 Keyboard 0 Movement Numpad Keybinds 0 Fullscreen 1 Font 18/X11Bold Map View 76x50 Tactical HUD 1 Map Filters NONE Filters NONE Steam 1 RUN: 01fbb956-8ec9-47c3-8383-7279d40662c8